bitfinex-derivatives/quotes_SOLF0:USTF0_20250914
["timestamp","ask_amount","ask_price","bid_price","bid_amount"]
[1757822956928,0.83597562,246.08,245.99,6.41]
[1757822957624,0.83597562,246.11,245.99,6.41]
[1757822958130,0.83597562,246.14,246.02,6.41]
[1757822958533,0.83597562,246.14,246.05,6.41]
[1757822959236,0.83597562,246.15,246.05,6.41]
[1757822959933,0.83597562,246.15,246.05,7.24597562]
[1757822960928,0.83597562,246.15,246.05,6.41]
[1757822962429,12.12,246.29,246.07,6.41]
[1757822962430,6.85,246.28,246.07,6.41]
[1757822962630,0.83597562,246.19,246.1,6.41]
[1757822963533,6.85,246.28,246.13,6.41]
[1757822963738,0.83597562,246.25,246.13,7.24597562]
[1757822965940,0.83597562,246.25,246.13,6.41]
[1757822966132,0.83597562,246.22,246.13,6.41]
[1757822967040,0.83597562,246.16,246.06,6.41]
[1757822967235,0.83597562,246.13,246.06,6.41]
[1757822967435,6.85,246.18,246.06,6.41]
[1757822967634,0.83597562,246.16,246.06,6.41]
[1757822968735,0.83597562,246.13,246.06,6.41]
[1757822975143,0.83597562,246.1,246.06,6.41]
[1757822975555,0.83597562,246.07,245.96,6.55]
[1757822975749,6.56,246.11,245.96,6.55]
[1757822975948,0.83597562,246.11,245.99,6.55]
[1757822976857,6.56,246.18,246.02,6.55]
[1757822977154,0.83597562,246.14,246.05,6.55]
[1757822977554,0.83597562,246.16,246.05,6.55]
[1757822978053,0.83597562,246.19,246.08,6.55]
[1757822978758,0.83597562,246.19,246.08,7.38597562]
[1757822979550,0.83597562,246.19,246.08,6.55]
[1757822980055,0.83597562,246.2,246.1,6.55]
[1757822980557,0.83597562,246.19,246.1,6.55]
[1757822982358,0.83597562,246.16,246.1,6.55]
[1757822982656,0.83597562,246.16,246.06,7.38597562]
[1757822984552,0.83597562,246.16,246.06,6.55]
[1757822985355,0.83597562,246.16,246.06,7.38597562]
[1757822986252,0.83597562,246.16,246.06,6.55]
[1757822986657,6.56,246.15,246.06,6.55]
[1757822990355,6.56,246.2,246.06,6.55]
[1757822990556,0.83597562,246.17,246.06,6.55]
[1757822990757,0.83597562,246.18,246.06,6.55]
[1757822991557,0.83597562,246.18,246.02,6.55]
[1757822991758,0.83597562,246.18,246.08,6.55]
[1757822993059,6.58,246.17,246.08,6.55]
[1757822994060,0.83597562,246.16,246.08,6.55]
[1757822997458,6.58,246.17,246.08,6.55]
[1757822997658,0.83597562,246.16,246.08,6.55]
[1757822997859,6.58,246.17,246.08,6.55]
[1757822998059,0.83597562,246.16,246.08,6.55]
[1757822998360,6.58,246.17,246.08,6.55]
[1757823000558,0.83597562,246.15,246.08,6.55]
[1757823004866,0.83597562,246.16,246.08,6.55]
[1757823005468,6.58,246.17,246.08,6.55]
[1757823005670,7.41597562,246.17,246.08,6.55]
[1757823007466,0.83597562,246.17,246.08,6.55]
[1757823007768,6.83,246.21,246.08,6.55]
[1757823008070,117.13057717,246.23,246.08,6.55]
[1757823008265,6.83,246.25,246.15,7.02]
[1757823008566,7.66597562,246.25,246.15,7.02]
[1757823009470,6.83,246.28,246.18,7.02]
[1757823009775,7.66597562,246.28,246.18,7.02]
[1757823010170,0.83597562,246.28,246.18,7.02]
[1757823010564,0.83597562,246.28,246.2,0.83597562]
[1757823010770,7.66597562,246.33,246.21,7.02]
[1757823010970,0.83597562,246.36,246.24,7.02]
[1757823011172,0.83597562,246.36,246.13,19.54]
[1757823011173,0.83597562,246.36,246.27,7.02]
[1757823011872,0.83597562,246.38,246.27,7.02]
[1757823012074,0.83597562,246.38,246.3,7.02]
[1757823012574,6.83,246.39,246.3,7.02]
[1757823014167,119.29874266,246.41,246.3,7.02]
[1757823014978,1.30460904,246.42,246.3,7.02]
[1757823015575,6.83,246.43,246.3,7.02]
[1757823016379,6.83,246.39,246.3,7.02]
[1757823016878,1.30460904,246.37,246.3,7.02]
[1757823019980,6.83,246.39,246.3,7.02]
[1757823020180,1.30460904,246.38,246.3,7.02]
[1757823022583,6.83,246.39,246.3,7.02]
[1757823022783,1.30460904,246.38,246.3,7.02]
[1757823023383,6.83,246.39,246.3,7.02]
[1757823024583,54.72,246.43,246.18,7.02]
[1757823024584,6.83,246.35,246.18,7.02]
[1757823025184,1.30460904,246.32,246.18,7.02]
[1757823025481,8.13460904,246.32,246.18,7.02]
[1757823026882,12.19,246.45,246.17,12.01376426]
[1757823026883,9.86,246.38,246.2,7.02]
[1757823027080,8.13460904,246.39,246.2,7.02]
[1757823027277,8.13460904,246.39,246.24,7.02]
[1757823028387,1.0,246.32,246.24,7.02]
[1757823033393,6.87,246.31,246.24,7.02]
[1757823033585,6.87,246.31,246.18,6.73]
[1757823037495,6.87,246.31,246.2,6.73]
[1757823039097,1.0,246.32,246.2,6.73]
[1757823039595,1.0,246.32,246.24,6.73]
[1757823041696,1.0,246.32,246.24,8.03460904]
[1757823041897,7.87,246.32,246.24,6.73]
[1757823042997,1.0,246.32,246.24,8.03460904]
[1757823044198,1.0,246.32,246.28,1.30460904]
[1757823044401,1.0,246.32,246.29,6.73]
[1757823044999,1.0,246.32,246.26,8.03460904]
[1757823048209,1.0,246.32,246.26,6.73]
[1757823051717,1.0,246.32,246.2,12.50929803]
[1757823051718,6.9,246.31,246.2,12.50929803]
[1757823052014,6.9,246.31,246.2,7.96460904]
[1757823052314,6.9,246.31,246.21,4.54468899]
[1757823052614,6.9,246.31,246.22,6.66]
[1757823053216,6.9,246.31,246.22,11.20468899]
[1757823055309,6.9,246.31,246.23,4.54468899]
[1757823056916,1.0,246.32,246.16,6.66]
[1757823056917,6.9,246.28,246.17,4.54468899]
[1757823057116,6.9,246.27,246.16,11.20468899]
[1757823058012,6.76,246.31,246.2,1.30460904]
[1757823058217,6.76,246.31,246.24,11.49468899]
[1757823059019,6.76,246.31,246.28,3.41264785]
[1757823059317,6.76,246.31,246.27,3.41264785]
[1757823059710,1.0,246.32,246.27,3.41264785]
[1757823060111,6.76,246.31,246.27,3.41264785]
[1757823060316,1.0,246.32,246.27,3.41264785]
[1757823060717,6.76,246.31,246.27,3.41264785]
[1757823060911,1.0,246.32,246.27,3.41264785]
[1757823061121,6.76,246.31,246.27,3.41264785]
[1757823061720,7.76,246.32,246.26,3.41264785]
[1757823063322,6.76,246.31,246.27,3.41264785]
[1757823064727,6.76,246.31,246.26,10.36264785]
[1757823064924,6.76,246.31,246.27,3.41264785]
[1757823065118,6.76,246.31,246.28,6.95]
[1757823066221,6.76,246.31,246.27,3.41264785]
[1757823072328,1.0,246.32,246.27,3.41264785]
[1757823072722,6.76,246.31,246.27,3.41264785]
[1757823073119,1.0,246.32,246.27,3.41264785]
[1757823073922,6.76,246.31,246.27,3.41264785]
[1757823074625,1.0,246.32,246.27,3.41264785]
[1757823075329,6.76,246.29,246.22,3.41264785]
[1757823075531,0.83523803,246.25,246.21,3.41264785]
[1757823075722,6.76,246.24,246.2,3.41264785]
[1757823076028,0.83523803,246.27,246.21,10.36264785]
[1757823077832,0.83523803,246.27,246.23,6.95]
[1757823078025,7.59523803,246.27,246.23,6.95]
[1757823078832,6.76,246.26,246.22,3.41264785]
[1757823079037,6.76,246.26,246.22,6.95]
[1757823081837,1.0,246.32,246.22,6.95]
[1757823082036,1.0,246.32,246.28,3.41264785]
[1757823082232,7.76,246.32,246.28,3.41264785]
[1757823082535,6.76,246.31,246.26,3.41264785]
[1757823082831,7.76,246.32,246.25,3.41264785]
[1757823084725,7.76,246.32,246.24,3.41264785]
[1757823090941,7.76,246.32,246.25,6.76]
[1757823091141,7.76,246.32,246.25,10.17264785]
[1757823091436,1.0,246.32,246.27,3.41264785]
[1757823091642,1.0,246.32,246.26,3.41264785]
[1757823091834,7.58,246.32,246.26,3.41264785]
[1757823092243,1.0,246.32,246.27,3.41264785]
[1757823092538,1.0,246.32,246.28,6.76]
[1757823092846,7.58,246.32,246.28,6.76]
[1757823093436,1.0,246.32,246.28,6.76]
[1757823093844,7.58,246.32,246.28,6.76]
[1757823094843,7.58,246.32,246.28,10.17264785]
[1757823095040,6.58,246.31,246.28,10.17264785]
[1757823095645,6.58,246.31,246.27,3.41264785]
[1757823096039,6.58,246.31,246.27,10.17264785]
[1757823097337,1.0,246.32,246.27,3.41264785]
[1757823097645,6.58,246.31,246.27,3.41264785]
[1757823098048,6.58,246.31,246.27,10.17264785]
[1757823098938,1.0,246.32,246.27,3.41264785]
[1757823099344,1.0,246.32,246.26,10.17264785]
[1757823099544,6.58,246.3,246.24,3.41264785]
[1757823100346,6.58,246.3,246.22,3.41264785]
[1757823101350,6.58,246.27,246.21,10.17264785]
[1757823102651,6.58,246.27,246.2,3.41264785]
[1757823102853,6.58,246.24,246.19,3.41264785]
[1757823103051,0.83523803,246.25,246.2,3.41264785]
[1757823103247,7.41523803,246.27,246.21,6.76]
[1757823103656,6.58,246.23,246.19,3.41264785]
[1757823103848,0.83523803,246.24,246.18,3.41264785]
[1757823104048,7.41523803,246.24,246.18,3.41264785]
[1757823104244,7.41523803,246.24,246.17,3.41264785]
[1757823104443,7.41523803,246.24,246.18,3.41264785]
[1757823105353,7.41523803,246.24,246.17,3.41264785]
[1757823105554,7.41523803,246.24,246.16,10.17264785]
[1757823105555,6.58,246.23,246.16,10.17264785]
[1757823106151,6.58,246.23,246.16,6.76]
[1757823106550,6.58,246.23,246.16,10.17264785]
[1757823106754,6.58,246.23,246.17,3.41264785]
[1757823107256,6.58,246.23,246.16,10.17264785]
[1757823109657,6.58,246.2,246.13,3.41264785]
[1757823110158,7.41523803,246.24,246.14,10.17264785]
[1757823110762,0.83523803,246.24,246.14,10.17264785]
[1757823110958,6.58,246.23,246.14,10.17264785]
[1757823111362,6.58,246.2,246.14,6.76]
[1757823113258,6.58,246.2,246.1,10.21264785]
[1757823114363,6.58,246.2,246.11,6.8]
[1757823114759,6.58,246.2,246.11,10.21264785]
[1757823118464,6.58,246.2,246.12,6.59]
[1757823122354,6.83,246.18,246.09,3.41264785]
[1757823122558,6.83,246.15,246.07,3.41264785]
[1757823122759,6.83,246.15,246.06,3.41264785]
[1757823122959,6.83,246.15,246.05,10.83788588]
[1757823123159,6.83,246.15,246.06,10.00264785]
[1757823123362,6.83,246.15,246.07,6.59]
[1757823123757,0.83523803,246.17,246.07,6.59]
[1757823123964,6.83,246.19,246.11,0.83523803]
[1757823124265,0.83523803,246.23,246.12,6.59]
[1757823124465,0.83523803,246.23,246.13,0.83523803]
[1757823124665,0.83523803,246.23,246.14,6.59]
[1757823125066,6.83,246.22,246.14,6.59]
[1757823125263,7.66523803,246.2,246.1,10.00264785]
[1757823125566,7.66523803,246.2,246.1,6.59]
[1757823125966,7.66523803,246.2,246.11,6.59]
[1757823129869,7.66523803,246.2,246.11,7.42523803]
[1757823130071,6.83,246.2,246.11,7.42523803]
[1757823130969,6.83,246.2,246.11,6.59]
[1757823132371,0.83523803,246.17,246.09,3.41264785]
[1757823132565,0.83523803,246.17,246.07,10.00264785]
[1757823132566,6.83,246.16,246.07,10.00264785]
[1757823136372,6.83,246.16,246.07,6.59]
[1757823136970,6.83,246.2,246.08,6.59]
[1757823137878,6.83,246.2,246.1,3.40297604]
[1757823138077,6.83,246.2,246.11,6.59]
[1757823138578,1.30688234,246.36,246.0,1.30688234]
[1757823138579,6.83,246.24,246.12,3.40297604]
[1757823138774,6.83,246.24,246.13,6.59]
[1757823139170,6.83,246.24,246.13,9.99297604]
[1757823140673,6.83,246.24,246.14,6.59]
[1757823140874,6.83,246.24,246.17,9.99297604]
[1757823142276,6.83,246.24,246.18,3.40297604]
[1757823142478,6.83,246.24,246.17,6.59]
[1757823143181,6.83,246.24,246.17,9.99297604]
[1757823144279,6.83,246.24,246.17,6.59]
[1757823147385,6.83,246.24,246.17,9.99297604]
[1757823148378,6.83,246.24,246.18,3.40297604]
[1757823149178,6.6,246.27,246.18,3.40297604]
[1757823153389,108.56,246.27,246.18,3.40297604]
[1757823155092,6.6,246.26,246.17,9.99297604]
[1757823155687,108.54,246.26,246.17,9.99297604]
[1757823156389,6.6,246.25,246.16,3.40297604]
[1757823156585,6.6,246.23,246.14,3.40297604]
[1757823156893,6.6,246.19,246.12,3.40297604]
[1757823158194,6.6,246.19,246.11,3.40297604]
[1757823158786,59.26,246.19,246.11,3.41504086]
[1757823158987,93.6,246.23,246.15,3.41504086]
[1757823159285,6.6,246.19,246.11,3.41504086]
[1757823159491,6.6,246.19,246.1,3.41504086]
[1757823160296,46.28,246.19,246.11,10.08504086]
[1757823160692,6.6,246.19,246.11,10.08504086]
[1757823160893,6.6,246.19,246.14,3.41504086]
[1757823161094,6.6,246.19,246.14,10.08504086]
[1757823161795,7.90688234,246.2,246.14,10.08504086]
[1757823162990,6.6,246.2,246.14,10.08504086]
[1757823163197,6.6,246.24,246.16,3.41504086]
[1757823163498,46.18,246.24,246.16,3.41504086]
[1757823163899,6.6,246.24,246.16,3.41504086]
[1757823167101,6.6,246.24,246.17,3.41504086]
[1757823167300,108.54,246.24,246.15,3.41504086]
[1757823167497,6.6,246.22,246.15,3.41504086]
[1757823168494,6.6,246.22,246.14,3.41504086]
[1757823168900,6.6,246.22,246.12,3.41504086]
[1757823169901,6.6,246.18,246.11,6.67]
[1757823170201,6.6,246.18,246.12,3.41504086]
[1757823170603,6.6,246.18,246.1,3.41504086]
[1757823170799,7.90688234,246.18,246.1,3.41504086]
[1757823171799,108.52,246.18,246.1,3.41504086]
[1757823172101,108.52,246.18,246.11,3.41504086]
[1757823172301,108.52,246.18,246.1,3.41504086]
[1757823173204,108.52,246.18,246.09,3.41504086]
[1757823173409,108.52,246.18,246.08,3.41504086]
[1757823173702,6.35,246.15,246.08,3.41439932]
[1757823173894,101.92,246.14,246.08,3.41439932]
[1757823174096,101.92,246.14,246.04,6.36]
[1757823174097,6.35,246.13,246.07,3.41439932]
[1757823174399,6.35,246.13,246.05,3.41439932]
[1757823175400,6.35,246.13,246.04,9.77439932]
[1757823176901,8.82,246.12,246.04,9.77439932]
[1757823177098,6.35,246.13,246.04,9.77439932]
[1757823177306,17.2,246.12,246.04,6.36]
[1757823178102,27.14,246.12,246.04,6.36]
[1757823178605,6.57,246.11,246.02,3.41439932]
[1757823178805,6.57,246.11,246.03,3.41439932]
[1757823179406,6.57,246.11,246.02,3.41439932]
[1757823181406,12.19,246.24,246.03,10.34439932]
[1757823181704,6.57,246.16,246.04,6.93]
[1757823181902,15.0,246.15,246.04,10.34439932]
[1757823182204,26.14,246.15,246.04,10.34439932]
[1757823182600,6.57,246.27,246.08,1.30688234]
[1757823182806,6.57,246.24,246.1,3.41439932]
[1757823183010,1.30688234,246.21,246.09,10.34439932]
[1757823183205,6.57,246.2,246.09,10.34439932]
[1757823183402,6.57,246.2,246.1,6.93]
[1757823183607,6.57,246.2,246.11,6.93]
[1757823183909,6.57,246.2,246.12,3.41439932]
[1757823184606,84.36,246.23,246.14,3.41439932]
[1757823184802,6.57,246.24,246.15,3.41439932]
[1757823185108,6.57,246.24,246.16,6.93]
[1757823185605,1.30688234,246.29,246.16,10.34439932]
[1757823185802,7.87688234,246.29,246.17,6.93]
[1757823186006,7.87688234,246.29,246.18,6.93]
[1757823186201,1.0,246.32,246.21,3.41439932]
[1757823186409,1.0,246.32,246.25,6.93]
[1757823186608,1.0,246.32,246.25,10.34439932]
[1757823187106,1.0,246.32,246.26,6.93]
[1757823187498,1.0,246.32,246.27,3.41439932]
[1757823187698,1.0,246.32,246.26,3.41439932]
[1757823187905,1.0,246.32,246.27,6.93]
[1757823188208,1.0,246.32,246.26,6.93]
[1757823189804,1.0,246.32,246.28,6.93]
[1757823190208,1.0,246.32,246.27,4.72128166]
[1757823190406,1.0,246.32,246.28,6.93]
[1757823191911,1.0,246.32,246.27,1.30688234]
[1757823192109,1.0,246.32,246.28,6.93]
[1757823192609,1.0,246.32,246.27,1.30688234]
[1757823192810,1.0,246.32,246.28,6.93]
[1757823193507,7.57,246.32,246.21,3.41439932]
[1757823193710,7.57,246.32,246.19,8.23688234]
[1757823194308,6.57,246.31,246.19,8.23688234]
[1757823194702,6.57,246.31,246.19,6.93]
[1757823194908,1.30688234,246.3,246.19,6.93]
[1757823195511,6.57,246.29,246.19,6.93]
[1757823196806,0.83578534,246.28,246.19,6.93]
[1757823199113,0.83578534,246.3,246.19,6.93]
[1757823199519,0.83578534,246.24,246.19,6.93]
[1757823199815,7.40578534,246.24,246.14,6.93]
[1757823200014,6.57,246.24,246.14,6.93]
[1757823201917,0.83578534,246.22,246.14,6.93]
[1757823202318,6.57,246.24,246.14,6.93]
[1757823202620,0.83578534,246.21,246.14,6.93]
[1757823203414,7.40578534,246.21,246.14,6.93]
[1757823203615,7.40578534,246.21,246.09,3.41439932]
[1757823203616,7.40578534,246.21,246.09,7.76578534]
[1757823203815,7.40578534,246.21,246.09,6.93]
[1757823204117,8.84,246.24,246.05,3.41439932]
[1757823204118,7.40578534,246.17,246.06,0.83578534]
[1757823205016,6.57,246.25,246.1,6.93]
[1757823205218,0.83578534,246.23,246.12,0.83578534]
[1757823205522,6.57,246.22,246.12,0.83578534]
[1757823206510,6.57,246.22,246.13,6.93]
[1757823206813,72.88935884,246.26,246.15,0.83578534]
[1757823210917,0.83578534,246.24,246.15,0.83578534]
[1757823212124,0.83578534,246.24,246.16,6.43]
[1757823213319,0.83578534,246.21,246.11,6.43]
[1757823214825,0.83578534,246.23,246.13,6.43]
[1757823215126,0.83578534,246.25,246.13,9.84439932]
[1757823215430,0.83578534,246.25,246.16,6.43]
[1757823215623,72.88935884,246.26,246.16,6.43]
[1757823216032,72.88935884,246.26,246.18,0.83578534]
[1757823216227,72.88935884,246.26,246.19,6.43]
[1757823217430,0.83578534,246.28,246.19,6.43]
[1757823221929,7.88,246.32,246.19,6.43]
[1757823222232,0.83578534,246.29,246.19,6.43]
[1757823224428,0.83578534,246.29,246.19,9.84439932]
[1757823224733,0.83578534,246.29,246.2,6.43]
[1757823226330,0.83578534,246.29,246.2,9.84439932]
[1757823228330,0.83578534,246.26,246.2,6.43]
[1757823231933,7.88,246.32,246.2,6.43]
[1757823232137,0.83578534,246.27,246.2,6.43]
[1757823232434,0.83578534,246.27,246.21,6.68]
[1757823238243,0.83578534,246.27,246.21,10.09439932]
[1757823238643,0.83578534,246.27,246.21,6.68]
[1757823243344,6.62,246.29,246.21,6.68]
[1757823243547,0.83578534,246.26,246.2,3.41439932]
[1757823244047,0.83578534,246.26,246.21,6.71]
[1757823244538,0.83578534,246.26,246.2,3.41439932]
[1757823244740,0.83578534,246.26,246.21,6.71]
[1757823245147,0.83578534,246.26,246.2,3.41439932]
[1757823245345,0.83578534,246.23,246.19,3.41439932]
[1757823245545,0.83578534,246.2,246.17,3.41439932]
[1757823245848,1.0,246.32,246.17,6.71]
[1757823246046,0.83578534,246.21,246.17,3.41439932]
[1757823246246,0.83578534,246.21,246.18,6.71]
[1757823246747,6.46,246.2,246.16,10.12439932]
[1757823246948,0.83578534,246.18,246.16,6.71]
[1757823248044,0.83578534,246.18,246.16,10.12439932]
[1757823248248,0.83578534,246.18,246.17,6.71]
[1757823252353,0.83578534,246.18,246.16,6.71]
[1757823253058,0.83578534,246.18,246.15,3.41439932]
[1757823253259,0.83578534,246.18,246.16,6.71]
[1757823256663,0.83578534,246.19,246.15,10.12439932]
[1757823256863,0.83578534,246.19,246.15,3.41439932]
[1757823257368,0.83578534,246.19,246.16,6.71]
[1757823257662,0.83578534,246.19,246.15,3.41439932]
[1757823257859,0.83578534,246.19,246.16,6.71]
[1757823258365,6.46,246.21,246.15,10.12439932]
[1757823260168,108.1,246.21,246.15,6.71]
[1757823262466,101.64,246.22,246.15,10.12439932]
[1757823262663,101.64,246.22,246.16,6.71]
[1757823263266,6.46,246.22,246.16,6.71]
[1757823263468,6.46,246.23,246.15,10.12439932]
[1757823263768,31.16,246.22,246.15,10.12439932]
[1757823265266,6.46,246.23,246.15,10.12439932]
[1757823265570,67.1,246.22,246.15,10.12439932]
[1757823267271,67.1,246.22,246.15,6.71]
[1757823269376,6.46,246.23,246.15,6.71]
[1757823269570,6.46,246.23,246.07,1.30633612]
[1757823269571,6.46,246.23,246.17,6.49]
[1757823270269,6.46,246.23,246.17,9.90439932]
[1757823271974,6.46,246.23,246.17,6.49]
[1757823272673,7.76633612,246.23,246.17,6.49]
[1757823274275,45.46633612,246.23,246.17,6.49]
[1757823274975,45.46633612,246.23,246.14,3.41439932]
[1757823275270,6.87,246.21,246.14,3.41439932]
[1757823275574,6.87,246.18,246.14,3.41439932]
[1757823276273,6.87,246.18,246.12,9.90439932]
[1757823283278,6.87,246.16,246.12,9.90439932]
[1757823283780,38.72,246.17,246.12,9.90439932]
[1757823283974,6.87,246.16,246.12,9.90439932]
[1757823284175,68.7,246.16,246.12,9.90439932]
[1757823284376,6.87,246.15,246.12,3.41439932]
[1757823284577,1.30633612,246.15,246.1,3.41439932]
[1757823284880,1.30633612,246.15,246.1,9.90439932]
[1757823285078,6.87,246.14,246.1,9.90439932]
[1757823285278,1.30633612,246.15,246.1,3.41439932]
[1757823285474,6.87,246.14,246.1,3.41439932]
[1757823285677,8.17633612,246.15,246.09,3.41439932]
[1757823286478,8.17633612,246.15,246.08,9.90439932]
[1757823287478,6.87,246.14,246.08,9.90439932]
[1757823288073,6.87,246.14,246.08,6.49]
[1757823288681,6.87,246.14,246.07,3.41439932]
[1757823289973,1.30633612,246.15,246.06,9.90439932]
[1757823290273,6.87,246.14,246.06,9.90439932]
[1757823291579,74.8,246.13,246.06,9.90439932]
[1757823293886,6.87,246.14,246.06,9.90439932]
[1757823294187,6.37,246.12,246.06,3.41439932]
[1757823294384,6.37,246.1,246.04,3.41439932]
[1757823294589,6.37,246.1,246.03,6.76]
[1757823295385,29.86,246.09,246.03,6.76]
[1757823299392,36.85,246.09,246.03,6.76]
[1757823300389,38.15633612,246.09,246.03,6.76]
[1757823300786,38.15633612,246.09,245.99,9.8408913]
[1757823300787,31.16633612,246.09,245.99,9.8408913]
[1757823301091,6.99,246.08,245.99,9.8408913]
[1757823301395,6.99,246.07,245.99,6.43]
[1757823301698,67.65,246.07,245.99,6.43]
[1757823301880,68.95633612,246.07,245.99,6.43]
[1757823302681,8.29633612,246.07,245.99,6.43]
[1757823303085,39.41633612,246.07,245.99,6.43]
[1757823303391,39.41633612,246.07,245.96,3.4108913]
[1757823303593,39.41633612,246.07,245.95,9.8408913]
[1757823303889,6.99,246.06,245.95,6.43]
[1757823304394,59.82,246.05,245.95,6.43]
[1757823304592,6.99,246.04,245.95,6.43]
[1757823306897,86.82,246.03,245.95,6.43]
[1757823307092,101.46,246.03,245.95,6.43]
[1757823307291,6.99,246.02,245.91,9.8408913]
[1757823307495,6.99,246.02,245.91,6.43]
[1757823308796,1.30633612,245.99,245.9,3.4108913]
[1757823308995,1.30633612,245.99,245.87,4.54468899]
[1757823308996,6.99,245.98,245.87,6.43]
[1757823309298,108.45,245.98,245.87,6.43]
[1757823309493,6.99,245.98,245.87,6.43]
[1757823309694,1.30633612,245.99,245.87,6.43]
[1757823309695,6.99,245.96,245.87,6.43]
[1757823309895,6.99,245.94,245.87,6.43]
[1757823310492,101.44,245.93,245.87,6.43]
[1757823310691,1.30633612,245.97,245.87,6.43]
[1757823310890,6.99,245.98,245.87,6.43]
[1757823311095,101.46,245.97,245.87,6.43]
[1757823311701,6.99,245.98,245.87,6.43]
[1757823311901,108.45,245.98,245.87,9.8408913]
[1757823312103,6.99,245.98,245.88,6.43]
[1757823312498,101.44,245.97,245.88,6.43]
[1757823315394,6.99,245.98,245.88,6.43]
[1757823315601,6.99,246.03,245.93,1.30633612]
[1757823315904,15.89,246.03,245.94,6.43]
[1757823316305,15.89,246.03,245.89,6.43]
[1757823316306,6.99,246.0,245.89,6.43]
[1757823317007,39.02,245.99,245.89,6.43]
[1757823317201,67.64,245.98,245.89,6.43]
[1757823318006,6.99,246.0,245.89,6.43]
[1757823318208,30.54,245.99,245.89,6.43]
[1757823318507,31.37748283,245.99,245.89,7.26748283]
[1757823318707,0.83748283,245.99,245.89,7.26748283]
[1757823318910,0.83748283,245.99,245.93,6.43]
[1757823319108,59.29748283,246.02,245.93,6.43]
[1757823319506,0.83748283,246.02,245.93,6.43]
[1757823320007,6.99,246.04,245.93,6.43]
[1757823320201,101.42,246.03,245.93,6.43]
[1757823320611,7.82748283,246.04,245.93,6.43]
[1757823320808,109.24748283,246.04,245.93,6.43]
[1757823321105,6.99,246.04,245.93,3.4108913]
[1757823321312,0.83748283,246.05,245.96,6.43]
[1757823321510,7.82748283,246.05,245.96,9.8408913]
[1757823321713,7.82748283,246.05,245.96,6.43]
[1757823323813,0.83748283,246.02,245.96,6.43]
[1757823324014,6.99,246.01,245.92,3.4108913]
[1757823324308,0.83748283,245.99,245.91,6.43]
[1757823325412,7.82748283,245.99,245.91,6.43]
[1757823327105,7.82748283,245.99,245.91,9.8408913]
[1757823327615,7.82748283,245.99,245.91,6.43]
[1757823329113,9.81748283,246.02,245.92,3.4108913]
[1757823329312,0.83748283,246.02,245.93,6.84]
[1757823329508,7.83748283,245.99,245.91,3.4108913]
[1757823332522,7.83748283,245.99,245.92,3.4108913]
[1757823332821,7.83748283,245.99,245.91,3.4108913]
[1757823333016,7.83748283,245.99,245.92,3.4108913]
[1757823334114,7.83748283,246.03,245.96,3.4108913]
[1757823334515,0.83748283,246.0,245.94,3.4108913]
[1757823334719,7.83748283,246.0,245.93,10.2508913]
[1757823334918,7.83748283,246.0,245.94,3.4108913]
[1757823336623,7.83748283,246.0,245.93,3.4108913]
[1757823337122,7.83748283,246.0,245.94,3.4108913]
[1757823339024,7.83748283,246.0,245.93,3.4108913]
[1757823339219,7.83748283,246.0,245.95,3.4108913]
[1757823339424,7.83748283,246.0,245.96,6.84]